fUSD/lending_fUSD_20240612
["ID","MTS","AMOUNT","RATE_DAILY","PERIOD"]
[329242771,1718197851749,-500.0,0.00020136,2]
[329242773,1718197851760,-500.0,0.00020136,2]
[329242775,1718197851771,-271.02002508,0.00020136,2]
[329242777,1718197851788,-500.0,0.00020136,2]
[329242779,1718197851803,-757.56,0.00020136,2]
[329242781,1718197851815,-500.0,0.00020136,2]
[329242783,1718197851830,-436.83299349,0.00020136,2]
[329242785,1718197851841,-500.0,0.00020136,2]
[329242787,1718197851851,-500.0,0.00020136,2]
[329242789,1718197851862,-531.22,0.00020136,2]
[329242791,1718197851872,-501.26,0.00020136,2]
[329242793,1718197851883,-171.13634232,0.00020136,2]
[329242795,1718197851895,-539.5,0.00020136,2]
[329242797,1718197851905,-518.16,0.00020136,2]
[329242799,1718197851916,-500.0,0.00020136,2]
[329242801,1718197851926,-500.0,0.00020136,2]
[329242803,1718197851936,-525.52,0.00020136,2]
[329242805,1718197851946,-500.0,0.00020136,2]
[329242807,1718197851957,-500.0,0.00020136,2]
[329242809,1718197851968,-500.0,0.00020136,2]
[329242811,1718197851979,-500.0,0.00020136,2]
[329242813,1718197851992,-768.12,0.00020136,2]
[329242815,1718197852002,-500.0,0.00020136,2]
[329242817,1718197852014,-500.0,0.00020136,2]
[329242819,1718197852024,-500.0,0.00020136,2]
[329242821,1718197852035,-500.0,0.00020136,2]
[329242823,1718197852045,-500.0,0.00020136,2]
[329242825,1718197852057,-500.0,0.00020136,2]
[329242827,1718197852068,-500.0,0.00020136,2]
[329242829,1718197852082,-500.0,0.00020136,2]
[329242831,1718197852096,-500.0,0.00020136,2]
[329242833,1718197852109,-500.0,0.00020136,2]
[329242835,1718197852120,-500.0,0.00020136,2]
[329242837,1718197852131,-500.0,0.00020136,2]
[329242839,1718197852143,-509.35,0.00020136,2]
[329242841,1718197852155,-298.71,0.00020136,2]
[329242843,1718197852166,-500.0,0.00020136,2]
[329242846,1718197852178,-500.0,0.00020136,2]
[329242848,1718197852191,-500.0,0.00020136,2]
[329242850,1718197852203,-513.94,0.00020136,2]
[329242852,1718197852215,-500.0,0.00020136,2]
[329242854,1718197852226,-500.0,0.00020136,2]
[329242856,1718197852237,-688.9,0.00020136,2]
[329242858,1718197852248,-500.0,0.00020136,2]
[329242860,1718197852260,-500.0,0.00020136,2]
[329242862,1718197852271,-500.0,0.00020136,2]
[329242864,1718197852282,-500.0,0.00020136,2]
[329242866,1718197852293,-535.7,0.00020136,2]
[329242868,1718197852303,-1880.54,0.00020136,2]
[329242870,1718197852317,-500.0,0.00020136,2]
[329242872,1718197852334,-1219.58,0.00020136,2]
[329242874,1718197852344,-513.64,0.00020136,2]
[329242876,1718197852354,-500.0,0.00020136,2]
[329242878,1718197852365,-7125.68509824,0.0002021,2]
[329242880,1718197852376,-7401.27091985,0.0002021,2]
[329242882,1718197852386,-500.0,0.00020273,2]
[329242884,1718197852398,-500.0,0.00020273,2]
[329242887,1718197852414,-500.0,0.00020273,2]
[329242889,1718197852424,-763.1,0.00020273,2]
[329242891,1718197852435,-336.30507011,0.00020273,2]
[329242893,1718197852445,-150.0,0.00020273,2]
[329242895,1718197852456,-500.0,0.00020273,2]
[329242897,1718197852467,-622.43,0.00020273,2]
[329242899,1718197852478,-221.97,0.00020273,2]
[329242901,1718197852488,-500.0,0.00020273,2]
[329242903,1718197852498,-500.0,0.00020273,2]
[329242905,1718197852511,-500.0,0.00020273,2]
[329242907,1718197852525,-500.0,0.00020273,2]
[329242909,1718197852535,-757.56,0.00020273,2]
[329242911,1718197852546,-500.0,0.00020273,2]
[329242913,1718197852556,-500.0,0.00020273,2]
[329242914,1718197852567,-500.0,0.00020273,2]
[329242917,1718197852580,-539.5,0.00020273,2]
[329242918,1718197852592,-518.16,0.00020273,2]
[329242921,1718197852602,-500.0,0.00020273,2]
[329242922,1718197852613,-500.0,0.00020273,2]
[329242925,1718197852623,-525.52,0.00020273,2]
[329242927,1718197852633,-500.0,0.00020273,2]
[329242929,1718197852644,-500.0,0.00020273,2]
[329242931,1718197852656,-526.40064373,0.00020273,2]
[329242933,1718197852669,-500.0,0.00020273,2]
[329242935,1718197852680,-768.12,0.00020273,2]
[329242937,1718197852691,-500.0,0.00020273,2]
[329242939,1718197852702,-500.0,0.00020273,2]
[329242941,1718197852716,-500.0,0.00020273,2]
[329242943,1718197852727,-500.0,0.00020273,2]
[329242945,1718197852738,-500.0,0.00020273,2]
[329242947,1718197852749,-500.0,0.00020273,2]
[329242949,1718197852760,-500.0,0.00020273,2]
[329242951,1718197852772,-500.0,0.00020273,2]
[329242953,1718197852801,-589.62,0.00020273,2]
[329242955,1718197852814,-500.0,0.00020273,2]
[329242957,1718197852830,-500.0,0.00020273,2]
[329242959,1718197852841,-500.0,0.00020273,2]
[329242961,1718197852852,-509.35,0.00020273,2]
[329242963,1718197852863,-500.0,0.00020273,2]
[329242965,1718197852874,-500.0,0.00020273,2]
[329242967,1718197852884,-627.88,0.00020273,2]
[329242969,1718197852895,-513.94,0.00020273,2]
[329242971,1718197852905,-311.49,0.00020273,2]
[329242973,1718197852915,-688.9,0.00020273,2]
[329242975,1718197852926,-500.0,0.00020273,2]
[329242977,1718197852937,-500.0,0.00020273,2]
[329242979,1718197852947,-500.0,0.00020273,2]
[329242981,1718197852958,-500.0,0.00020273,2]
[329242983,1718197852969,-500.0,0.00020273,2]
[329242985,1718197852980,-535.7,0.00020273,2]
[329242990,1718197853026,-1880.54,0.00020273,2]
[329242992,1718197853037,-500.0,0.00020273,2]
[329242994,1718197853048,-1219.58,0.00020273,2]
[329242996,1718197853058,-513.64,0.00020273,2]
[329242998,1718197853068,-500.0,0.00020273,2]
[329243000,1718197853083,-164.78418327,0.0002028,2]
[329243002,1718197853095,-500.0,0.00020309,2]
[329243004,1718197853107,-500.0,0.00020309,2]
[329243006,1718197853117,-1102.23,0.00020309,2]
[329243008,1718197853127,-1102.23,0.00020309,2]
[329243010,1718197853139,-25403.43595985,0.0002031,2]
[329243019,1718197853352,-328.39001,0.0002031,2]
[329243025,1718197853428,-155.5,0.00017807,2]
[329243027,1718197853441,-500.0,0.00019178,2]
[329243029,1718197853452,-50303.65113015,0.0002031,2]
[329243030,1718197853462,-128394.54423747,0.0002031,2]
[329243031,1718197853475,-7646.57086215,0.0002031,2]
[329243032,1718197853508,-7293.54499776,0.0002031,2]
[329243033,1718197853522,-3042.51251388,0.0002031,2]
[329243034,1718197853536,-5459.81778861,0.0002031,2]
[329243035,1718197853568,-93163.00960013,0.0002031,2]
[329243036,1718197853582,-368.48390707,0.00020381,2]
[329243037,1718197853592,-222.53,0.000204,15]
[329243038,1718197853602,-500.0,0.0002041,2]
[329243039,1718197853612,-500.0,0.0002041,2]
[329243040,1718197853623,-304.69054422,0.0002041,2]
[329243041,1718197853633,-763.1,0.0002041,2]
[329243042,1718197853643,-150.0,0.0002041,2]
[329243043,1718197853653,-384.25876316,0.0002041,2]
[329243044,1718197853663,-622.43,0.0002041,2]
[329243045,1718197853673,-500.0,0.0002041,2]
[329243046,1718197853684,-500.0,0.0002041,2]
[329243047,1718197853694,-500.0,0.0002041,2]
[329243048,1718197853705,-500.0,0.0002041,2]
[329243049,1718197853714,-757.56,0.0002041,2]
[329243050,1718197853724,-500.0,0.0002041,2]
[329243051,1718197853734,-500.0,0.0002041,2]
[329243052,1718197853744,-304.45,0.0002041,2]
[329243053,1718197853755,-539.5,0.0002041,2]
[329243054,1718197853766,-518.16,0.0002041,2]
[329243055,1718197853777,-500.0,0.0002041,2]
[329243056,1718197853801,-500.0,0.0002041,2]
[329243057,1718197853811,-525.52,0.0002041,2]
[329243058,1718197853822,-500.0,0.0002041,2]
[329243059,1718197853836,-500.0,0.0002041,2]
[329243060,1718197853848,-500.0,0.0002041,2]
[329243061,1718197853858,-768.12,0.0002041,2]
[329243062,1718197853869,-324.0036697,0.0002041,2]
[329243063,1718197853882,-500.0,0.0002041,2]
[329243064,1718197853893,-500.0,0.0002041,2]
[329243065,1718197853905,-500.0,0.0002041,2]
[329243066,1718197853915,-500.0,0.0002041,2]
[329243067,1718197853926,-500.0,0.0002041,2]
[329243068,1718197853937,-500.0,0.0002041,2]
[329243069,1718197853949,-500.0,0.0002041,2]
[329243070,1718197853960,-500.0,0.0002041,2]
[329243071,1718197853970,-500.0,0.0002041,2]
[329243072,1718197853982,-500.0,0.0002041,2]
[329243073,1718197853993,-509.35,0.0002041,2]
[329243074,1718197854004,-500.0,0.0002041,2]
[329243075,1718197854015,-500.0,0.0002041,2]
[329243076,1718197854026,-513.94,0.0002041,2]
[329243077,1718197854037,-500.0,0.0002041,2]
[329243078,1718197854048,-688.9,0.0002041,2]
[329243079,1718197854060,-500.0,0.0002041,2]
[329243080,1718197854070,-500.0,0.0002041,2]
[329243081,1718197854085,-500.0,0.0002041,2]
[329243082,1718197854098,-500.0,0.0002041,2]
[329243083,1718197854110,-535.7,0.0002041,2]
[329243084,1718197854123,-1880.54,0.0002041,2]
[329243085,1718197854135,-500.0,0.0002041,2]
[329243086,1718197854148,-1219.58,0.0002041,2]
[329243087,1718197854159,-513.64,0.0002041,2]
[329243088,1718197854169,-230.55,0.0002041,2]
[329243089,1718197854180,-538.29,0.00020419,2]
[329243090,1718197854191,-979.0,0.00020476,2]
[329243091,1718197854201,-1269.0,0.00020476,2]
[329243092,1718197854212,-1651.0,0.00020476,2]
[329243093,1718197854221,-1830.0,0.00020476,2]
[329243094,1718197854231,-616.0,0.00020476,2]
[329243095,1718197854241,-546.0,0.00020476,2]
[329243096,1718197854251,-842.881,0.00020476,2]
[329243097,1718197854260,-1976.0,0.00020476,2]
[329243098,1718197854271,-2319.408,0.00020476,2]
[329243099,1718197854281,-5151.0,0.00020476,2]
[329243100,1718197854309,-290.0,0.00020476,2]
[329243101,1718197854319,-1066.0,0.00020476,2]
[329243102,1718197854332,-548.23,0.00020547,2]
[329243103,1718197854342,-500.0,0.00020547,2]
[329243104,1718197854352,-763.1,0.00020547,2]
[329243105,1718197854362,-150.0,0.00020547,2]
[329243106,1718197854372,-622.43,0.00020547,2]
[329243107,1718197854382,-500.0,0.00020547,2]
[329243108,1718197854392,-500.0,0.00020547,2]
[329243109,1718197854403,-500.0,0.00020547,2]
[329243110,1718197854414,-500.0,0.00020547,2]
[329243111,1718197854426,-757.56,0.00020547,2]
[329243112,1718197854438,-545.5801167,0.00020547,2]
[329243113,1718197854449,-633.49,0.00020547,2]
[329243114,1718197854460,-539.5,0.00020547,2]
[329243115,1718197854471,-518.16,0.00020547,2]
[329243116,1718197854481,-500.0,0.00020547,2]
[329243117,1718197854492,-500.0,0.00020547,2]
[329243118,1718197854502,-525.52,0.00020547,2]
[329243119,1718197854512,-500.0,0.00020547,2]
[329243120,1718197854523,-500.0,0.00020547,2]
[329243121,1718197854533,-500.0,0.00020547,2]
[329243122,1718197854544,-768.12,0.00020547,2]
[329243123,1718197854556,-500.0,0.00020547,2]
[329243124,1718197854567,-487.50821321,0.00020547,2]
[329243125,1718197854580,-500.0,0.00020547,2]
[329243126,1718197854592,-500.0,0.00020547,2]
[329243127,1718197854602,-500.0,0.00020547,2]
[329243128,1718197854614,-500.0,0.00020547,2]
[329243129,1718197854625,-500.0,0.00020547,2]
[329243130,1718197854636,-500.0,0.00020547,2]
[329243131,1718197854647,-500.0,0.00020547,2]
[329243132,1718197854659,-509.35,0.00020547,2]
[329243133,1718197854669,-500.0,0.00020547,2]
[329243134,1718197854679,-500.0,0.00020547,2]
[329243135,1718197854690,-513.94,0.00020547,2]
[329243136,1718197854701,-500.0,0.00020547,2]
[329243137,1718197854711,-500.0,0.00020547,2]
[329243138,1718197854722,-688.9,0.00020547,2]
[329243139,1718197854733,-500.0,0.00020547,2]
[329243140,1718197854743,-500.0,0.00020547,2]
[329243141,1718197854756,-500.0,0.00020547,2]
[329243142,1718197854767,-535.7,0.00020547,2]
[329243143,1718197854777,-1880.54,0.00020547,2]
[329243144,1718197854801,-500.0,0.00020547,2]
[329243145,1718197854814,-1219.58,0.00020547,2]
[329243146,1718197854824,-513.64,0.00020547,2]
[329243147,1718197854840,-274.89869998,0.00020684,2]
[329243148,1718197854851,-763.1,0.00020684,2]
[329243149,1718197854863,-158.23180479,0.00020684,2]
[329243150,1718197854874,-622.43,0.00020684,2]
[329243151,1718197854884,-581.87,0.00020684,2]
[329243152,1718197854894,-500.0,0.00020684,2]
[329243153,1718197854905,-500.0,0.00020684,2]
[329243154,1718197854916,-500.0,0.00020684,2]
[329243155,1718197854926,-757.56,0.00020684,2]
[329243156,1718197854937,-539.5,0.00020684,2]
[329243157,1718197854948,-518.16,0.00020684,2]
[329243158,1718197854958,-500.0,0.00020684,2]
[329243159,1718197854970,-500.0,0.00020684,2]
[329243160,1718197854980,-525.52,0.00020684,2]
[329243161,1718197854990,-352.98785522,0.00020684,2]
[329243162,1718197855002,-327.00502993,0.00020684,2]
[329243163,1718197855013,-453.97,0.00020684,2]
[329243164,1718197855024,-768.12,0.00020684,2]
[329243165,1718197855035,-500.0,0.00020684,2]
[329243166,1718197855046,-500.0,0.00020684,2]
[329243167,1718197855057,-500.0,0.00020684,2]
[329243168,1718197855067,-401.05,0.00020684,2]
[329243169,1718197855080,-563.94,0.00020684,2]
[329243170,1718197855091,-500.0,0.00020684,2]
[329243171,1718197855105,-500.0,0.00020684,2]
[329243172,1718197855116,-500.0,0.00020684,2]
[329243173,1718197855128,-509.35,0.00020684,2]
[329243174,1718197855140,-500.0,0.00020684,2]
[329243175,1718197855151,-500.0,0.00020684,2]
[329243176,1718197855162,-513.94,0.00020684,2]
[329243177,1718197855173,-500.0,0.00020684,2]
[329243178,1718197855185,-500.0,0.00020684,2]
[329243179,1718197855198,-688.9,0.00020684,2]
[329243180,1718197855209,-500.0,0.00020684,2]
[329243181,1718197855223,-500.0,0.00020684,2]
[329243182,1718197855235,-500.0,0.00020684,2]
[329243183,1718197855248,-535.7,0.00020684,2]
[329243184,1718197855259,-1880.54,0.00020684,2]
[329243185,1718197855269,-1219.58,0.00020684,2]
[329243186,1718197855280,-336.12,0.00020684,2]
[329243187,1718197855293,-513.64,0.00020684,2]
[329243188,1718197855305,-19719.65764171,0.000207,2]
[329243189,1718197855324,-763.1,0.00020821,2]
[329243190,1718197855341,-622.43,0.00020821,2]
[329243191,1718197855352,-500.0,0.00020821,2]
[329243192,1718197855363,-500.0,0.00020821,2]
[329243193,1718197855375,-500.0,0.00020821,2]
[329243194,1718197855385,-757.56,0.00020821,2]
[329243195,1718197855397,-539.5,0.00020821,2]
[329243196,1718197855408,-518.16,0.00020821,2]
[329243197,1718197855419,-500.0,0.00020821,2]
[329243198,1718197855429,-642.44,0.00020821,2]
[329243199,1718197855440,-525.52,0.00020821,2]
[329243200,1718197855451,-768.12,0.00020821,2]
[329243201,1718197855463,-500.0,0.00020821,2]
[329243202,1718197855474,-500.0,0.00020821,2]
[329243203,1718197855486,-500.0,0.00020821,2]
[329243204,1718197855500,-500.0,0.00020821,2]
[329243205,1718197855515,-500.0,0.00020821,2]
[329243206,1718197855527,-391.68253793,0.00020821,2]
[329243207,1718197855541,-509.35,0.00020821,2]
[329243208,1718197855553,-464.49514566,0.00020821,2]
[329243209,1718197855564,-500.0,0.00020821,2]
[329243210,1718197855575,-513.94,0.00020821,2]
[329243211,1718197855589,-500.0,0.00020821,2]
[329243212,1718197855600,-500.0,0.00020821,2]
[329243213,1718197855611,-688.9,0.00020821,2]
[329243214,1718197855621,-500.0,0.00020821,2]
[329243215,1718197855632,-500.0,0.00020821,2]
[329243216,1718197855644,-500.0,0.00020821,2]
[329243217,1718197855655,-535.7,0.00020821,2]
[329243218,1718197855666,-1880.54,0.00020821,2]
[329243219,1718197855676,-1219.58,0.00020821,2]
[329243220,1718197855687,-513.64,0.00020821,2]
[329243221,1718197855698,-1300.0,0.000209,7]
[329243222,1718197855708,-763.1,0.00020958,2]
[329243223,1718197855718,-622.43,0.00020958,2]
[329243224,1718197855728,-500.0,0.00020958,2]
[329243225,1718197855739,-500.0,0.00020958,2]
[329243226,1718197855749,-500.0,0.00020958,2]
[329243227,1718197855761,-757.56,0.00020958,2]
[329243228,1718197855771,-539.5,0.00020958,2]
[329243229,1718197855793,-518.16,0.00020958,2]
[329243230,1718197855804,-500.0,0.00020958,2]
[329243231,1718197855814,-525.52,0.00020958,2]
[329243232,1718197855824,-768.12,0.00020958,2]
[329243233,1718197855838,-500.0,0.00020958,2]
[329243234,1718197855847,-263.10793661,0.00020958,2]
[329243235,1718197855858,-500.0,0.00020958,2]
[329243236,1718197855871,-500.0,0.00020958,2]
[329243237,1718197855883,-500.0,0.00020958,2]
[329243238,1718197855894,-509.35,0.00020958,2]
[329243239,1718197855908,-500.0,0.00020958,2]
[329243240,1718197855919,-513.94,0.00020958,2]
[329243241,1718197855928,-442.7,0.00020958,2]
[329243242,1718197855938,-642.27,0.00020958,2]
[329243243,1718197855949,-688.9,0.00020958,2]
[329243244,1718197855959,-500.0,0.00020958,2]
[329243245,1718197855970,-646.17,0.00020958,2]
[329243246,1718197855981,-434.70622012,0.00020958,2]
[329243247,1718197855992,-535.7,0.00020958,2]
[329243248,1718197856002,-1880.54,0.00020958,2]
[329243249,1718197856014,-1219.58,0.00020958,2]
[329243250,1718197856025,-513.64,0.00020958,2]
[329243251,1718197856039,-173.02,0.00020973,2]
[329243252,1718197856051,-400.0,0.00020977,2]
[329243253,1718197856061,-12725.39162434,0.00021,2]
[329243254,1718197856073,-5000.0,0.00021,2]
[329243255,1718197856087,-1250.0,0.00021,2]
[329243256,1718197856098,-201.594972,0.00021,2]
[329243257,1718197856110,-7125.68509821,0.00021091,2]
[329243258,1718197856123,-763.1,0.00021095,2]
[329243259,1718197856133,-622.43,0.00021095,2]
[329243260,1718197856144,-500.0,0.00021095,2]
[329243261,1718197856155,-500.0,0.00021095,2]
[329243262,1718197856167,-500.0,0.00021095,2]
[329243263,1718197856178,-757.56,0.00021095,2]
[329243264,1718197856191,-539.5,0.00021095,2]
[329243265,1718197856202,-518.16,0.00021095,2]
[329243266,1718197856212,-500.0,0.00021095,2]
[329243267,1718197856222,-525.52,0.00021095,2]
[329243268,1718197856232,-768.12,0.00021095,2]
[329243269,1718197856243,-500.0,0.00021095,2]
[329243270,1718197856253,-500.0,0.00021095,2]
[329243271,1718197856264,-500.0,0.00021095,2]
[329243272,1718197856275,-500.0,0.00021095,2]
[329243273,1718197856286,-509.35,0.00021095,2]
[329243274,1718197856297,-500.0,0.00021095,2]
[329243275,1718197856307,-513.94,0.00021095,2]
[329243276,1718197856319,-688.9,0.00021095,2]
[329243277,1718197856332,-500.0,0.00021095,2]
[329243278,1718197856344,-535.7,0.00021095,2]
[329243279,1718197856355,-1880.54,0.00021095,2]
[329243280,1718197856366,-1219.58,0.00021095,2]
[329243281,1718197856376,-513.64,0.00021095,2]
[329243282,1718197856387,-2033.5382367,0.00021199,2]
[329243283,1718197856398,-1287.21623907,0.000212,2]
[329243284,1718197856410,-1500.0,0.00021215,2]
[329243285,1718197856421,-500.0,0.00021231,2]
[329243286,1718197856432,-763.1,0.00021232,2]
[329243287,1718197856442,-622.43,0.00021232,2]
[329243288,1718197856458,-500.0,0.00021232,2]
[329243289,1718197856469,-500.0,0.00021232,2]
[329243290,1718197856480,-187.89347951,0.00021232,2]
[329243291,1718197856490,-757.56,0.00021232,2]
[329243292,1718197856501,-539.5,0.00021232,2]
[329243293,1718197856512,-518.16,0.00021232,2]
[329243294,1718197856523,-500.0,0.00021232,2]
[329243295,1718197856534,-525.52,0.00021232,2]
[329243296,1718197856544,-768.12,0.00021232,2]
[329243297,1718197856556,-500.0,0.00021232,2]
[329243298,1718197856567,-500.0,0.00021232,2]
[329243299,1718197856579,-500.0,0.00021232,2]
[329243300,1718197856594,-500.0,0.00021232,2]
[329243301,1718197856606,-509.35,0.00021232,2]
[329243302,1718197856617,-214.40054411,0.00021232,2]
[329243303,1718197856628,-513.94,0.00021232,2]
[329243304,1718197856639,-688.9,0.00021232,2]
[329243305,1718197856650,-500.0,0.00021232,2]
[329243306,1718197856661,-535.7,0.00021232,2]
[329243307,1718197856672,-1880.54,0.00021232,2]
[329243308,1718197856684,-1219.58,0.00021232,2]
[329243309,1718197856696,-513.64,0.00021232,2]
[329243310,1718197856707,-200.41,0.00021364,2]
[329243311,1718197856719,-763.1,0.00021369,2]
[329243312,1718197856731,-622.43,0.00021369,2]
[329243313,1718197856743,-638.90030271,0.00021369,2]
[329243314,1718197856754,-373.51192756,0.00021369,2]
[329243315,1718197856765,-757.56,0.00021369,2]
[329243316,1718197856777,-539.5,0.00021369,2]
[329243317,1718197856799,-518.16,0.00021369,2]
[329243318,1718197856810,-611.17992062,0.00021369,2]
[329243319,1718197856821,-525.52,0.00021369,2]
[329243320,1718197856833,-1102.23,0.00021369,2]
[329243321,1718197856844,-768.12,0.00021369,2]
[329243322,1718197856855,-500.0,0.00021369,2]
[329243323,1718197856869,-500.0,0.00021369,2]
[329243324,1718197856881,-500.0,0.00021369,2]
[329243325,1718197856892,-500.0,0.00021369,2]
[329243326,1718197856903,-509.35,0.00021369,2]
[329243327,1718197856914,-513.94,0.00021369,2]
[329243328,1718197856925,-688.9,0.00021369,2]
[329243329,1718197856935,-480.53,0.00021369,2]
[329243330,1718197856946,-535.7,0.00021369,2]
[329243331,1718197856957,-1880.54,0.00021369,2]
[329243332,1718197856969,-1219.58,0.00021369,2]
[329243333,1718197856980,-513.64,0.00021369,2]
[329243334,1718197856991,-5873.18,0.0002137,2]
[329243335,1718197857002,-24657.34,0.0002137,2]
[329243336,1718197857013,-763.1,0.00021506,2]
[329243337,1718197857024,-622.43,0.00021506,2]
[329243338,1718197857036,-757.56,0.00021506,2]
[329243339,1718197857048,-539.5,0.00021506,2]
[329243340,1718197857059,-518.16,0.00021506,2]
[329243341,1718197857070,-525.52,0.00021506,2]
[329243342,1718197857083,-768.12,0.00021506,2]
[329243343,1718197857095,-500.0,0.00021506,2]
[329243344,1718197857107,-500.0,0.00021506,2]
[329243345,1718197857121,-500.0,0.00021506,2]
[329243346,1718197857133,-444.08549173,0.00021506,2]
[329243347,1718197857145,-509.35,0.00021506,2]
[329243348,1718197857156,-513.94,0.00021506,2]
[329243349,1718197857167,-688.9,0.00021506,2]
[329243350,1718197857178,-535.7,0.00021506,2]
[329243351,1718197857190,-1880.54,0.00021506,2]
[329243352,1718197857201,-1219.58,0.00021506,2]
[329243353,1718197857212,-513.64,0.00021506,2]
[329243354,1718197857223,-763.1,0.00021643,2]
[329243355,1718197857234,-622.43,0.00021643,2]
[329243356,1718197857244,-757.56,0.00021643,2]
[329243357,1718197857256,-539.5,0.00021643,2]
[329243358,1718197857268,-518.16,0.00021643,2]
[329243359,1718197857279,-525.52,0.00021643,2]
[329243360,1718197857290,-768.12,0.00021643,2]
[329243361,1718197857301,-500.0,0.00021643,2]
[329243362,1718197857313,-500.0,0.00021643,2]
[329243363,1718197857324,-500.0,0.00021643,2]
[329243364,1718197857338,-509.35,0.00021643,2]
[329243365,1718197857348,-513.94,0.00021643,2]
[329243366,1718197857359,-688.9,0.00021643,2]
[329243367,1718197857370,-535.7,0.00021643,2]
[329243368,1718197857380,-1880.54,0.00021643,2]
[329243369,1718197857391,-1219.58,0.00021643,2]
[329243370,1718197857402,-513.64,0.00021643,2]
[329243371,1718197857413,-368.48390707,0.00021684,2]
[329243372,1718197857423,-763.1,0.0002178,2]
[329243373,1718197857434,-622.43,0.0002178,2]
[329243374,1718197857445,-757.56,0.0002178,2]
[329243375,1718197857456,-539.5,0.0002178,2]
[329243376,1718197857468,-518.16,0.0002178,2]
[329243377,1718197857478,-525.52,0.0002178,2]
[329243378,1718197857489,-768.12,0.0002178,2]
[329243379,1718197857500,-500.0,0.0002178,2]
[329243380,1718197857512,-500.0,0.0002178,2]
[329243381,1718197857525,-387.61,0.0002178,2]
[329243382,1718197857536,-509.35,0.0002178,2]
[329243383,1718197857547,-513.94,0.0002178,2]
[329243384,1718197857559,-688.9,0.0002178,2]
[329243385,1718197857569,-535.7,0.0002178,2]
[329243386,1718197857581,-1880.54,0.0002178,2]
[329243387,1718197857594,-1219.58,0.0002178,2]
[329243388,1718197857605,-513.64,0.0002178,2]
[329243389,1718197857617,-1000.0,0.000219,2]
[329243390,1718197857629,-763.1,0.00021917,2]
[329243391,1718197857641,-622.43,0.00021917,2]
[329243392,1718197857652,-757.56,0.00021917,2]
[329243393,1718197857664,-539.5,0.00021917,2]
[329243394,1718197857675,-518.16,0.00021917,2]
[329243395,1718197857686,-525.52,0.00021917,2]
[329243396,1718197857697,-768.12,0.00021917,2]
[329243397,1718197857708,-500.0,0.00021917,2]
[329243398,1718197857719,-500.0,0.00021917,2]
[329243399,1718197857739,-500.0,0.00021917,2]
[329243400,1718197857757,-500.0,0.00021917,2]
[329243401,1718197857770,-500.0,0.00021917,2]
[329243402,1718197857797,-500.0,0.00021917,2]
[329243403,1718197857811,-159.40342451,0.00021917,2]
[329243404,1718197857825,-500.0,0.00021917,2]
[329243405,1718197857838,-500.0,0.00021917,2]
[329243406,1718197857850,-509.35,0.00021917,2]
[329243407,1718197857877,-513.94,0.00021917,2]